bitfinex-derivatives/quotes_SOLF0:USTF0_20251023
["timestamp","ask_amount","ask_price","bid_price","bid_amount"]
[1761198541146,5.01869722,184.4,184.3,2.9]
[1761198541147,6.90893168,184.35,184.3,2.9]
[1761198541354,2.75,184.35,184.3,2.9]
[1761198541550,2.75,184.35,184.31,2.9]
[1761198542261,6.90967391,184.35,184.31,2.9]
[1761198542463,2.75,184.35,184.31,2.9]
[1761198545565,2.75,184.35,184.31,4.8817]
[1761198545764,2.75,184.35,184.32,2.9]
[1761198545963,6.89992476,184.37,184.32,2.9]
[1761198546164,2.75,184.37,184.32,2.9]
[1761198547066,2.75,184.37,184.33,2.9]
[1761198548669,4.15077502,184.36,184.33,2.9]
[1761198548871,2.75,184.37,184.33,2.9]
[1761198549067,4.15085736,184.36,184.33,2.9]
[1761198549262,2.75,184.37,184.33,2.9]
[1761198549463,4.15169513,184.36,184.33,2.9]
[1761198549664,2.75,184.37,184.33,2.9]
[1761198550567,2.75,184.37,184.34,2.9]
[1761198551071,7.53861079,184.41,184.34,2.9]
[1761198551366,6.90179034,184.4,184.36,2.9]
[1761198551566,4.78861079,184.41,184.36,2.9]
[1761198551762,4.1506578,184.4,184.36,2.9]
[1761198551965,4.78861079,184.42,184.36,2.9]
[1761198552168,4.1506578,184.41,184.37,4.8802]
[1761198552368,4.1506578,184.4,184.38,2.9]
[1761198552570,2.75,184.42,184.38,2.9]
[1761198552870,4.1501159,184.41,184.38,2.9]
[1761198553066,2.75,184.42,184.38,2.9]
[1761198553268,4.15081502,184.41,184.38,2.9]
[1761198553472,2.75,184.42,184.38,2.9]
[1761198553773,4.14966098,184.41,184.38,2.9]
[1761198553962,2.75,184.42,184.38,2.9]
[1761198554166,4.14966098,184.41,184.38,2.9]
[1761198554466,2.75,184.42,184.38,2.9]
[1761198554771,8.80588573,184.48,184.37,4.8802]
[1761198554772,2.75,184.46,184.39,2.9]
[1761198555072,4.14842891,184.45,184.39,2.9]
[1761198555271,6.89842891,184.44,184.39,2.9]
[1761198555476,2.75,184.44,184.39,2.9]
[1761198556171,2.75,184.44,184.4,2.9]
[1761198556774,2.75,184.44,184.39,7.7796]
[1761198557072,2.75,184.44,184.4,2.9]
[1761198557674,2.75,184.43,184.4,2.9]
[1761198558675,7.50932284,184.43,184.4,2.9]
[1761198558873,2.75,184.43,184.4,2.9]
[1761198559675,2.75,184.42,184.4,2.9]
[1761198559878,2.75,184.41,184.38,2.9]
[1761198562976,2.75,184.41,184.36,2.04059183]
[1761198563173,2.75,184.41,184.34,7.7809]
[1761198563374,6.89413125,184.4,184.34,7.7809]
[1761198563576,2.75,184.4,184.34,7.7809]
[1761198564083,2.75,184.4,184.35,2.87]
[1761198568687,2.75,184.4,184.36,2.86]
[1761198570587,4.14428977,184.42,184.36,2.86]
[1761198570985,2.84,184.41,184.36,2.86]
[1761198572185,2.84,184.44,184.38,2.86]
[1761198572382,6.98494382,184.43,184.39,1.30428977]
[1761198572582,2.84,184.43,184.4,2.86]
[1761198572974,6.98494382,184.43,184.4,2.86]
[1761198573173,2.84,184.43,184.4,2.86]
[1761198573783,6.98496773,184.43,184.4,2.86]
[1761198574090,2.84,184.43,184.4,2.86]
[1761198574786,6.98514293,184.43,184.4,2.86]
[1761198574987,2.84,184.45,184.4,2.86]
[1761198575192,6.97233207,184.44,184.4,2.86]
[1761198575389,4.13233207,184.43,184.4,2.86]
[1761198575987,4.75719861,184.46,184.4,2.86]
[1761198575988,2.84,184.44,184.4,2.86]
[1761198576190,4.13233207,184.43,184.4,2.86]
[1761198576383,2.84,184.44,184.4,2.86]
[1761198576785,6.97271441,184.44,184.4,2.86]
[1761198577087,2.84,184.44,184.4,2.86]
[1761198577585,2.84,184.44,184.42,2.86]
[1761198578090,4.13264001,184.45,184.42,2.86]
[1761198578281,11.73019161,184.46,184.43,2.86]
[1761198578480,4.13264001,184.45,184.43,2.86]
[1761198578993,4.75654717,184.48,184.43,2.86]
[1761198579194,6.97256322,184.47,184.43,2.86]
[1761198579391,2.84,184.47,184.43,2.86]
[1761198579891,4.13219753,184.47,184.44,1.30428977]
[1761198580189,6.97219753,184.49,184.45,2.86]
[1761198580394,2.84,184.47,184.42,4.16428977]
[1761198580598,2.84,184.46,184.43,2.86]
[1761198581394,4.13177846,184.47,184.43,2.86]
[1761198581594,4.13177846,184.48,184.43,2.86]
[1761198581794,4.13177846,184.47,184.43,2.86]
[1761198582494,2.84,184.47,184.43,2.86]
[1761198582891,6.97177846,184.47,184.43,2.86]
[1761198583195,2.84,184.47,184.43,2.86]
[1761198583888,2.84,184.46,184.43,2.86]
[1761198585389,4.13243002,184.48,184.43,4.16428977]
[1761198585590,4.13243002,184.47,184.44,2.86]
[1761198585786,2.84,184.47,184.42,9.04298977]
[1761198586091,2.84,184.46,184.43,2.86]
[1761198586997,6.97269919,184.46,184.43,2.86]
[1761198587197,2.84,184.46,184.43,2.86]
[1761198587593,6.97311305,184.46,184.43,2.86]
[1761198587795,2.84,184.45,184.43,2.86]
[1761198588195,4.13319533,184.46,184.43,2.86]
[1761198588396,6.97319533,184.47,184.43,2.86]
[1761198588597,4.13319533,184.46,184.43,2.86]
[1761198589198,2.84,184.46,184.43,2.86]
[1761198592595,4.75782209,184.49,184.43,2.86]
[1761198592596,7.59782209,184.49,184.43,2.86]
[1761198592900,2.84,184.47,184.43,2.86]
[1761198594297,6.97798853,184.46,184.42,6.18298977]
[1761198594598,2.84,184.46,184.43,2.86]
[1761198598299,4.13959195,184.45,184.43,2.86]
[1761198598498,2.84,184.46,184.43,2.86]
[1761198598700,4.13959195,184.45,184.43,2.86]
[1761198598997,2.84,184.46,184.43,2.86]
[1761198599195,2.9,184.44,184.42,9.13298977]
[1761198599888,2.9,184.45,184.42,9.13298977]
[1761198600312,4.14001963,184.44,184.4,4.25428977]
[1761198600496,2.9,184.46,184.41,2.95]
[1761198600689,7.04001963,184.45,184.41,2.95]
[1761198600900,4.14001963,184.44,184.41,2.95]
[1761198601096,7.03998302,184.43,184.4,2.95]
[1761198601296,7.03998302,184.43,184.37,7.8302]
[1761198601297,2.9,184.43,184.37,7.8302]
[1761198601604,7.04027567,184.42,184.39,2.95]
[1761198601796,2.9,184.42,184.39,2.95]
[1761198608607,7.04444486,184.41,184.39,2.95]
[1761198608791,2.9,184.41,184.39,2.95]
[1761198609205,2.9,184.41,184.35,4.8807]
[1761198609206,2.9,184.39,184.36,2.95]
[1761198609395,4.72799671,184.42,184.32,1.30428977]
[1761198609396,2.9,184.37,184.32,2.95]
[1761198609598,2.9,184.35,184.32,2.95]
[1761198611991,2.9,184.33,184.3,2.95]
[1761198612196,2.9,184.33,184.27,2.95]
[1761198612392,1.30428977,184.32,184.27,2.95]
[1761198612593,2.9,184.31,184.27,2.95]
[1761198613395,4.20428977,184.32,184.27,2.95]
[1761198613996,2.9,184.31,184.27,2.95]
[1761198614193,1.30428977,184.32,184.27,2.95]
[1761198614397,4.20428977,184.32,184.27,2.95]
[1761198615508,1.30428977,184.34,184.28,2.95]
[1761198618202,2.9,184.33,184.28,2.95]
[1761198621107,2.9,184.33,184.28,1.30428977]
[1761198621307,2.9,184.33,184.29,2.95]
[1761198624907,2.9,184.33,184.3,1.30428977]
[1761198625115,2.9,184.33,184.3,2.67]
[1761198630303,2.86,184.38,184.3,2.67]
[1761198632120,2.86,184.38,184.31,2.75]
[1761198632815,6.98363687,184.38,184.31,2.75]
[1761198633016,2.86,184.4,184.31,2.75]
[1761198633717,2.86,184.39,184.31,2.75]
[1761198633916,2.86,184.38,184.31,2.75]
[1761198634605,4.12363687,184.38,184.31,2.75]
[1761198634809,2.86,184.37,184.31,2.75]
[1761198637711,2.86,184.4,184.34,2.75]
[1761198639722,2.86,184.44,184.37,2.75]
[1761198639924,2.86,184.43,184.37,2.75]
[1761198640219,6.98270675,184.43,184.37,2.75]
[1761198640418,4.12270675,184.42,184.37,2.75]
[1761198640614,4.12270675,184.45,184.37,2.75]
[1761198640820,2.86,184.42,184.37,2.75]
[1761198641709,6.98497905,184.45,184.37,2.75]
[1761198642020,4.12497905,184.44,184.37,2.75]
[1761198642421,4.12497905,184.44,184.38,2.75]
[1761198643120,4.12497905,184.44,184.39,2.03925449]
[1761198643420,4.12639098,184.46,184.4,2.75]
[1761198643620,2.86,184.44,184.4,2.75]
[1761198643823,2.86,184.43,184.4,2.75]
[1761198646512,2.86,184.43,184.36,2.75]
[1761198646918,2.03925449,184.41,184.33,2.75]
[1761198647122,2.86,184.39,184.33,2.75]
[1761198647422,2.86,184.38,184.33,2.75]
[1761198647618,2.86,184.38,184.29,6.92165449]
[1761198647823,2.86,184.38,184.3,2.75]
[1761198648224,2.86,184.37,184.3,4.8819]
[1761198648427,2.86,184.37,184.31,2.75]
[1761198648820,4.12979403,184.39,184.31,2.75]
[1761198649025,4.12979403,184.39,184.32,2.75]
[1761198649329,6.98979403,184.39,184.32,2.75]
[1761198649521,2.86,184.39,184.32,2.75]
[1761198649916,6.99032923,184.39,184.32,2.75]
[1761198650128,2.86,184.39,184.32,2.75]
[1761198650518,6.99098779,184.39,184.32,2.75]
[1761198650716,2.86,184.39,184.32,2.75]
[1761198651518,6.99158076,184.39,184.32,2.75]
[1761198651731,2.86,184.39,184.32,2.75]
[1761198652229,6.99158076,184.39,184.32,2.75]
[1761198652445,2.86,184.39,184.32,2.75]
[1761198652930,6.99231157,184.39,184.32,2.75]
[1761198653126,2.86,184.39,184.32,2.75]
[1761198653532,6.99306241,184.39,184.32,2.75]
[1761198653832,2.86,184.39,184.32,2.75]
[1761198654432,6.99298041,184.39,184.33,2.75]
[1761198654638,2.86,184.39,184.33,2.75]
[1761198655521,6.99317949,184.39,184.33,2.75]
[1761198655720,2.86,184.39,184.33,2.75]
[1761198656636,6.99304069,184.39,184.33,2.75]
[1761198656833,2.86,184.39,184.33,2.75]
[1761198658935,4.1326873,184.41,184.34,2.87]
[1761198659124,4.1326873,184.4,184.34,2.87]
[1761198659328,2.77,184.42,184.34,2.87]
[1761198659630,6.90253907,184.41,184.34,2.87]
[1761198659832,2.77,184.41,184.34,2.87]
[1761198660227,4.13257294,184.4,184.35,2.03925449]
[1761198660434,6.90257294,184.4,184.36,2.87]
[1761198660632,2.77,184.4,184.36,2.87]
[1761198662734,4.13233478,184.42,184.36,2.87]
[1761198662953,2.77,184.43,184.36,2.87]
[1761198663237,4.13228809,184.42,184.36,2.87]
[1761198663436,2.77,184.43,184.36,2.87]
[1761198663738,4.13224107,184.42,184.36,2.87]
[1761198663938,2.77,184.43,184.36,2.87]
[1761198664137,4.13224077,184.42,184.36,2.87]
[1761198664339,4.13218861,184.42,184.36,2.87]
[1761198667045,4.13218861,184.42,184.38,2.87]
[1761198667046,6.90218861,184.42,184.38,2.87]
[1761198667340,2.77,184.42,184.38,2.87]
[1761198667732,4.13314368,184.43,184.4,2.87]
[1761198667937,6.90288731,184.45,184.4,2.87]
[1761198668138,4.13288731,184.44,184.4,2.87]
[1761198668336,2.77,184.45,184.4,2.87]
[1761198668531,4.13276591,184.44,184.41,2.87]
[1761198668742,2.77,184.45,184.41,2.87]
[1761198668941,6.90276591,184.45,184.41,2.87]
[1761198669136,2.77,184.45,184.41,2.87]
[1761198669337,4.13225874,184.47,184.42,2.87]
[1761198669537,4.13225874,184.46,184.42,2.87]
[1761198669839,2.77,184.48,184.42,2.87]
[1761198670037,6.90221301,184.47,184.42,2.87]
[1761198670238,4.13221301,184.46,184.42,2.87]
[1761198670437,2.77,184.47,184.43,2.87]
[1761198670635,4.69385558,184.49,184.43,2.87]
[1761198670636,6.90186106,184.46,184.43,2.87]
[1761198670834,2.77,184.46,184.43,2.87]
[1761198671537,7.46385558,184.49,184.43,2.87]
[1761198671844,2.77,184.47,184.42,4.8788]
[1761198672046,4.13166208,184.48,184.32,10.03925449]
[1761198672047,2.77,184.45,184.33,2.87]
[1761198672344,2.77,184.43,184.35,2.87]
[1761198672544,2.77,184.42,184.35,2.87]
[1761198673443,4.13343247,184.44,184.38,4.88]
[1761198673646,4.13329585,184.44,184.39,2.87]
[1761198673838,6.90329585,184.44,184.39,2.87]
[1761198674240,2.77,184.44,184.39,2.87]
[1761198677259,2.77,184.44,184.39,4.8796]
[1761198677558,2.77,184.44,184.4,2.87]
[1761198678457,6.90512664,184.43,184.4,2.87]
[1761198678657,2.77,184.42,184.4,2.87]
[1761198680058,2.77,184.44,184.4,2.87]
[1761198680263,4.13592618,184.43,184.4,2.87]
[1761198680455,2.77,184.44,184.4,2.87]
[1761198680761,6.90670685,184.43,184.4,2.87]
[1761198680964,2.77,184.43,184.4,2.87]
[1761198683157,4.13890087,184.42,184.4,2.87]
[1761198683362,2.77,184.43,184.4,2.87]
[1761198683564,4.13890087,184.42,184.4,2.87]
[1761198683763,2.77,184.43,184.4,2.87]
[1761198684559,4.13888575,184.42,184.4,2.87]
[1761198684752,2.77,184.43,184.4,2.87]
[1761198684958,4.13893125,184.42,184.4,2.87]
[1761198685158,2.77,184.43,184.4,2.87]
[1761198685563,2.79,184.46,184.4,2.87]
[1761198685759,2.79,184.44,184.4,2.87]
[1761198685964,4.13867369,184.43,184.4,2.87]
[1761198686165,2.79,184.44,184.4,2.87]
[1761198686365,4.13855406,184.43,184.4,2.87]
[1761198686560,2.79,184.44,184.4,2.87]
[1761198687168,2.79,184.44,184.4,4.8794]
[1761198687368,2.79,184.44,184.41,2.95]
[1761198688376,2.79,184.44,184.42,2.95]
[1761198688772,2.89,184.45,184.42,2.95]
[1761198689072,4.13793647,184.44,184.42,2.95]
[1761198689265,2.89,184.45,184.42,2.95]
[1761198689466,4.13768371,184.44,184.42,2.95]
[1761198689669,4.7211863,184.47,184.44,2.71]
[1761198689993,2.89,184.52,184.44,2.71]
[1761198690173,4.13655183,184.51,184.49,2.71]
[1761198690372,2.89,184.55,184.49,2.71]
[1761198690577,2.89,184.53,184.49,2.71]
[1761198690879,4.13411552,184.52,184.5,2.71]
[1761198691081,2.89,184.54,184.5,2.71]
[1761198691267,7.02165926,184.53,184.5,2.71]
[1761198691468,4.13165926,184.52,184.5,2.71]
[1761198691668,7.02165926,184.53,184.5,2.71]
[1761198691869,4.13165926,184.52,184.5,2.71]
[1761198692273,2.89,184.53,184.5,2.71]
[1761198692669,7.01609027,184.52,184.48,4.8772]
[1761198692876,2.89,184.52,184.48,7.5872]
[1761198693067,2.89,184.52,184.49,2.71]
[1761198694076,7.01501657,184.52,184.49,2.71]
[1761198694284,2.89,184.52,184.49,2.71]
[1761198695177,2.89,184.52,184.45,8.89038997]
[1761198695478,2.89,184.51,184.45,8.89038997]
[1761198696280,2.89,184.51,184.45,7.5881]
[1761198696475,2.89,184.51,184.45,8.89038997]
[1761198697785,2.89,184.51,184.47,1.30228997]
[1761198697981,2.89,184.51,184.48,2.71]
[1761198698483,2.89,184.51,184.47,1.30228997]
[1761198698876,2.89,184.51,184.47,4.01228997]
[1761198699982,2.89,184.51,184.48,2.71]
[1761198700184,2.89,184.56,184.51,2.71]
[1761198700387,2.89,184.56,184.51,4.01228997]
[1761198700587,2.89,184.55,184.51,2.71]
[1761198701474,4.09058713,184.56,184.51,2.71]
[1761198701475,2.89,184.54,184.51,2.71]
[1761198702487,2.89,184.54,184.5,8.88918997]
[1761198703086,2.89,184.54,184.48,6.17978997]
[1761198703395,2.89,184.53,184.48,6.17978997]
[1761198703587,2.89,184.57,184.5,1.30228997]
[1761198703886,2.89,184.55,184.5,6.17898997]
[1761198704087,2.89,184.54,184.5,4.8767]
[1761198705284,2.89,184.54,184.49,2.71]
[1761198705285,2.89,184.53,184.48,6.17978997]
[1761198705488,2.89,184.52,184.49,2.71]
[1761198707487,2.89,184.52,184.48,8.88978997]
[1761198709282,2.89,184.51,184.48,8.88978997]
[1761198709882,2.89,184.51,184.46,4.878]
[1761198710388,2.89,184.5,184.46,4.878]
[1761198711692,2.89,184.5,184.47,2.71]
[1761198712185,6.98067949,184.5,184.47,2.71]
[1761198712380,2.89,184.5,184.47,2.71]
[1761198714788,4.09306987,184.51,184.48,4.8775]
[1761198714993,6.98306987,184.53,184.49,2.71]
[1761198715195,2.89,184.53,184.49,2.71]
[1761198715696,4.09257109,184.53,184.5,2.71]
[1761198716014,2.89,184.54,184.5,2.71]
[1761198716195,6.98257109,184.54,184.5,2.71]
[1761198716395,4.09257109,184.53,184.5,2.71]
[1761198716598,2.89,184.54,184.5,2.71]
[1761198717189,6.98200306,184.54,184.5,2.71]
[1761198717395,2.89,184.54,184.5,2.71]
[1761198717698,6.98216538,184.56,184.5,2.71]
[1761198717891,4.09216538,184.55,184.5,2.71]
[1761198718091,4.09216538,184.55,184.51,2.71]
[1761198718092,2.89,184.54,184.51,2.71]
[1761198718792,6.98216538,184.54,184.51,2.71]
[1761198718998,2.89,184.54,184.51,2.71]
[1761198719594,6.98240124,184.54,184.51,2.71]
[1761198719895,4.11228997,184.57,184.51,2.71]
[1761198720093,5.06322312,184.59,184.51,2.71]
[1761198720094,2.81,184.55,184.52,2.77]
[1761198720296,4.09241488,184.55,184.52,2.77]
[1761198720494,2.81,184.57,184.52,2.77]
[1761198720793,2.81,184.55,184.52,2.77]
[1761198720999,6.90241488,184.55,184.52,2.77]
[1761198721196,2.81,184.55,184.52,2.77]
[1761198721800,2.81,184.55,184.51,1.30228997]
[1761198721994,2.81,184.54,184.5,4.8768]
[1761198722193,2.81,184.54,184.48,4.8774]
[1761198722395,4.09325634,184.53,184.49,2.77]
[1761198722594,6.90325634,184.54,184.49,2.77]
[1761198722795,2.81,184.52,184.49,4.07228997]
[1761198724202,2.81,184.55,184.5,2.77]
[1761198724402,6.90468878,184.54,184.5,2.77]
[1761198724594,4.09468878,184.53,184.5,2.77]
[1761198724903,2.81,184.54,184.5,2.77]
[1761198725313,4.09810775,184.53,184.5,2.77]
[1761198725493,6.90810775,184.53,184.5,2.77]
[1761198725695,2.81,184.53,184.5,2.77]
[1761198726498,6.90810775,184.53,184.5,2.77]
[1761198726698,2.81,184.53,184.5,2.77]
[1761198730107,4.10408573,184.52,184.5,2.77]
[1761198730308,2.81,184.53,184.5,2.77]
[1761198730603,4.10417889,184.52,184.5,2.77]
[1761198730806,2.81,184.53,184.5,2.77]
[1761198731007,2.81,184.51,184.47,4.8776]
[1761198731611,2.81,184.51,184.45,6.18048997]
[1761198731808,4.10643604,184.5,184.43,4.07228997]
[1761198732005,2.81,184.48,184.43,4.07228997]
[1761198732211,2.81,184.48,184.44,2.77]
[1761198734214,4.1117491,184.47,184.44,2.77]
[1761198734415,2.81,184.47,184.44,2.77]
[1761198734615,2.81,184.47,184.43,4.8788]
[1761198734813,2.81,184.45,184.43,4.8788]
[1761198735020,2.81,184.45,184.39,2.77]
[1761198735616,1.30228997,184.47,184.39,2.77]
[1761198735617,2.81,184.43,184.39,2.77]
[1761198735819,2.81,184.43,184.39,7.6498]
[1761198736012,2.81,184.43,184.39,2.77]
[1761198739325,4.1041606,184.45,184.41,1.30228997]
[1761198739527,2.81,184.46,184.42,2.77]
[1761198739729,4.10415878,184.45,184.42,2.77]
[1761198739926,2.81,184.45,184.42,2.77]
[1761198742225,6.91259696,184.44,184.4,7.6494]
[1761198742525,2.81,184.44,184.41,2.77]
[1761198743119,6.91182215,184.44,184.41,2.77]
[1761198743322,2.81,184.44,184.41,2.77]
[1761198743826,2.81,184.44,184.41,4.07228997]
[1761198744015,2.9,184.47,184.41,1.30228997]
[1761198744219,7.00067647,184.46,184.42,2.83]
[1761198744426,2.9,184.46,184.42,2.83]
[1761198745127,2.9,184.45,184.42,2.83]
[1761198745822,2.9,184.43,184.39,9.01208997]
[1761198746625,2.9,184.43,184.4,2.83]
[1761198751835,2.81,184.45,184.4,2.83]
[1761198753034,4.09722412,184.46,184.4,2.83]
[1761198753035,2.81,184.44,184.4,2.83]
[1761198753527,4.09722412,184.46,184.41,2.72]
[1761198753728,2.81,184.46,184.41,2.72]
[1761198756827,2.81,184.45,184.41,2.72]
[1761198758437,2.81,184.45,184.42,2.72]
[1761198766835,4.10238271,184.45,184.42,2.72]
[1761198767050,2.81,184.43,184.37,7.6004]
[1761198767242,2.81,184.41,184.38,2.72]
[1761198767745,2.81,184.45,184.38,2.72]
[1761198767943,6.91413076,184.44,184.38,2.72]
[1761198768139,2.81,184.42,184.35,2.03692268]
[1761198768334,2.81,184.46,184.39,2.72]
[1761198768537,4.10404633,184.45,184.39,2.72]
[1761198768741,4.10404633,184.44,184.39,2.72]
[1761198769047,6.91404633,184.44,184.39,2.72]
[1761198769237,2.81,184.44,184.39,2.72]
[1761198770045,2.81,184.44,184.4,2.72]
[1761198770234,6.91594064,184.44,184.4,2.72]
[1761198770437,2.81,184.48,184.4,2.72]
[1761198770739,6.91565081,184.47,184.41,2.72]
[1761198770934,5.06322312,184.5,184.42,2.72]
[1761198770935,4.10565081,184.46,184.42,2.72]
[1761198771140,4.10565081,184.48,184.42,2.72]
[1761198771340,4.10565081,184.47,184.42,2.72]
[1761198771539,4.10565081,184.48,184.45,2.72]
[1761198771740,6.91565081,184.47,184.45,2.72]
[1761198771935,2.81,184.47,184.45,2.72]
[1761198772743,2.81,184.47,184.43,7.5986]
[1761198772943,4.10764936,184.46,184.43,7.5986]
[1761198773143,2.81,184.47,184.44,2.72]
[1761198773339,4.10923443,184.46,184.44,2.72]
[1761198773644,2.81,184.47,184.44,2.72]
[1761198773949,6.91931602,184.46,184.44,2.72]
[1761198774243,4.11113475,184.45,184.42,2.72]
[1761198774448,2.81,184.46,184.42,2.72]
[1761198774643,4.11113475,184.45,184.42,2.72]
[1761198774852,2.81,184.46,184.42,2.72]
[1761198775148,2.81,184.46,184.43,2.72]
[1761198775344,4.11297916,184.45,184.43,2.72]
[1761198775646,2.81,184.46,184.43,2.72]
[1761198775947,6.92314249,184.45,184.43,2.72]
[1761198776149,4.11335149,184.44,184.43,2.72]
[1761198777143,6.92335149,184.44,184.42,4.8789]
[1761198777447,2.81,184.44,184.42,4.8789]
[1761198778246,4.11706475,184.43,184.42,4.8789]
[1761198778447,4.11706475,184.43,184.42,7.5989]
[1761198778946,2.88,184.47,184.42,7.5989]
[1761198779151,2.88,184.45,184.42,7.5989]
[1761198779346,4.11690095,184.44,184.42,7.5989]
[1761198779542,2.88,184.45,184.42,7.5989]
[1761198779743,4.11795115,184.44,184.42,7.5989]
[1761198779943,2.88,184.45,184.42,7.5989]
[1761198780145,4.11795081,184.44,184.42,7.5789]
[1761198780450,4.11809969,184.43,184.42,4.8789]
[1761198780950,4.11809969,184.43,184.42,7.5789]
[1761198782644,2.88,184.45,184.43,2.7]
[1761198782943,2.03692268,184.51,184.43,2.7]
[1761198782944,4.11801823,184.44,184.43,2.7]
[1761198784452,2.88,184.48,184.43,2.7]
[1761198784652,2.88,184.46,184.43,2.7]
[1761198784872,4.09530298,184.45,184.43,2.7]
[1761198785048,2.88,184.46,184.43,2.7]
[1761198785248,4.09514093,184.45,184.43,2.7]
[1761198785450,2.88,184.46,184.43,2.7]
[1761198785651,4.09499771,184.45,184.43,2.7]
[1761198785853,7.94322312,184.49,184.43,2.7]
[1761198786051,2.88,184.47,184.43,2.7]
[1761198786253,4.09507962,184.46,184.43,2.7]
[1761198786451,2.88,184.49,184.43,2.7]
[1761198786651,6.97472083,184.48,184.43,2.7]
[1761198786852,4.09472083,184.47,184.44,2.7]
[1761198787055,4.09467466,184.46,184.44,2.7]
[1761198787353,2.88,184.51,184.44,2.7]
[1761198787555,4.09387303,184.5,184.44,2.7]
[1761198787755,4.09387303,184.49,184.44,2.7]
[1761198787956,4.09387303,184.48,184.44,7.5783]
[1761198788153,2.88,184.51,184.45,2.7]
[1761198788358,6.97303386,184.5,184.45,2.7]
[1761198788554,4.09303386,184.49,184.45,2.7]
[1761198788762,4.09303386,184.48,184.46,2.7]
[1761198788961,2.88,184.5,184.46,2.7]
[1761198789163,4.09303386,184.49,184.46,2.7]
[1761198789458,4.09303386,184.48,184.46,2.7]
[1761198789762,4.09230859,184.47,184.46,2.7]
[1761198791159,2.88,184.46,184.39,2.7]
[1761198791357,4.09230859,184.45,184.39,2.7]
[1761198791555,2.88,184.46,184.4,2.7]
[1761198791758,4.09235029,184.45,184.4,2.7]
[1761198791963,2.88,184.46,184.4,2.7]
[1761198792267,6.97243155,184.45,184.42,2.7]
[1761198792458,2.88,184.48,184.42,2.7]
[1761198792660,2.88,184.46,184.42,2.7]
[1761198792860,4.09246767,184.45,184.42,2.7]
[1761198793165,2.88,184.46,184.42,2.7]
[1761198793365,5.06322312,184.49,184.42,2.7]
[1761198793366,6.97258377,184.45,184.42,2.7]
[1761198793567,2.88,184.45,184.42,2.7]
[1761198795172,4.09300755,184.44,184.42,2.7]
[1761198795469,2.88,184.45,184.42,2.7]
[1761198795667,4.09309317,184.44,184.42,2.7]
[1761198795865,2.88,184.45,184.42,2.7]
[1761198796561,2.88,184.45,184.38,2.7]
[1761198796562,4.09317392,184.44,184.38,2.7]
[1761198796872,5.06322312,184.47,184.38,2.7]
[1761198796873,2.88,184.42,184.38,2.7]
[1761198798371,2.88,184.46,184.38,2.7]
[1761198798564,6.97334138,184.45,184.38,2.7]